[Event "GER-ch Youth-U14 2022"]
[Site "Willingen"]
[Date "2022.06.05"]
[Round "2.23"]
[White "Grundmann, Max"]
[Black "Wunderlich, Elias"]
[Result "0-1"]
[ECO "D53"]
[WhiteElo "1358"]
[BlackElo "1619"]
[Annotator "NA RC COMBH"]
[PlyCount "106"]
[EventDate "2022.06.05"]
[EventType "swiss"]
[EventRounds "9"]
[EventCountry "GER"]
[SourceTitle "playchess.com"]
[Source "ChessBase"]
[SourceQuality "1"]
[TimeControl "40/4500+30:900+30"]

1. d4 {[%emt 0:00:00]} d5 {[%emt 0:00:00]} 2. c4 {[%emt 0:00:00]} e6 {[%emt 0:00:00]} 3. Nc3 {[%emt 0:00:00]} Nf6 {[%emt 0:00:00]} 4. Bg5 {[%emt 0:00:00]} Be7 {[%emt 0:00:00]} 5. e3 {[%emt 0:00:00]} h6 {[%emt 0:00:00]} 6. Bh4 {[%emt 0:00:00]} O-O {[%emt 0:00:00]} 7. Bd3 {[%emt 0:00:00]} Nbd7 {[%emt 0:00:00]} 8. Nge2 {[%emt 0:00:00]} c5 {[%emt 0:00:00]} 9. Bxf6 {[%emt 0:00:00]} Nxf6 {[%emt 0:00:00]} 10. cxd5 {[%emt 0:00:00]} Nxd5 {[%emt 0:00:00]} 11. O-O {[%emt 0:00:00]} Bd7 {[%emt 0:00:00]} 12. a3 {[%emt 0:00:00]} Rc8 {[%emt 0:00:00]} 13. Rc1 {[%emt 0:00:00]} Nxc3 {[%emt 0:00:00]} 14. Rxc3 {[%emt 0:00:00]} b5 {[%emt 0:05:29]} 15. dxc5 {[%emt 0:02:12]} Bxc5 {[%emt 0:00:35]} 16. b4 {[%emt 0:01:11]} Bb6 {[%emt 0:01:27]} 17. Qc2 {[%emt 0:02:01]} Qg5 {[%emt 0:02:07]} 18. Rd1 {[%emt 0:03:54]} Rcd8 {[%emt 0:03:03]} 19. Be4 {[%emt 0:05:39]} e5 {[%emt 0:01:48]} 20. Bc6 {[%emt 0:01:59]} Bg4 {[%emt 0:04:47]} 21. Rxd8 {[%emt 0:01:45]} Rxd8 {[%emt 0:00:17]} 22. Bxb5 Bf3 {[%emt 0:00:25]} 23. g3 {[%emt 0:01:45]} Qg4 {[%emt 0:01:21]} 24. Kf1 {[%emt 0:01:47]} Qh3+ {[%emt 0:00:53]} 25. Ke1 {[%emt 0:00:49]} Qxh2 {[%emt 0:00:40]} 26. Bd3 {[%emt 0:01:33]} e4 {[%emt 0:04:19]} 27. Rc8 {[%emt 0:03:41]} exd3 {[%emt 0:01:36]} 28. Rxd8+ {[%emt 0:00:12]} Bxd8 {[%emt 0:00:05]} 29. Qxd3 {[%emt 0:00:57]} Qh1+ {[%emt 0:00:44]} 30. Kd2 {[%emt 0:00:12]} Bf6 {[%emt 0:03:28]} 31. Qf5 {[%emt 0:01:31]} Qh5 {[%emt 0:01:05]} 32. Qxh5 {[%emt 0:01:28]} Bxh5 {[%emt 0:00:08]} 33. Nd4 {[%emt 0:00:30]} Bxd4 {[%emt 0:01:08]} 34. exd4 {[%emt 0:00:07]} Kf8 {[%emt 0:00:14]} 35. Kd3 {[%emt 0:00:06]} Ke7 {[%emt 0:00:24]} 36. Kc4 {[%emt 0:00:06]} Kd6 {[%emt 0:00:07]} 37. d5 {[%emt 0:01:05]} Bf3 {[%emt 0:00:27]} 38. Kb5 {[%emt 0:00:52]} Be2+ {[%emt 0:00:17]} 39. Ka5 {[%emt 0:00:11]} a6 {[%emt 0:00:29]} 40. a4 {[%emt 0:00:09]} Kxd5 {[%emt 0:00:19]} 41. b5 {[%emt 0:15:36]} axb5 {[%emt 0:15:08]} 42. axb5 {[%emt 0:00:12]} h5 {[%emt 0:01:30]} 43. Ka6 {[%emt 0:00:51]} Kc5 {[%emt 0:00:15]} 44. g4 {[%emt 0:00:34]} h4 {[%emt 0:00:11]} 45. g5 {[%emt 0:00:13]} h3 {[%emt 0:00:37]} 46. g6 {[%emt 0:00:16]} f6 {[%emt 0:00:09]} 47. Ka5 {[%emt 0:00:14]} Bxb5 {[%emt 0:00:34]} 48. f4 {[%emt 0:00:11]} Bc6 {[%emt 0:00:37]} 49. Ka6 {[%emt 0:00:16]} h2 {[%emt 0:00:20]} 50. f5 {[%emt 0:00:11]} h1=Q {[%emt 0:00:19]} 51. Ka7 {[%emt 0:00:06]} Qb1 {[%emt 0:00:20]} 52. Ka6 {[%emt 0:00:04]} Qb7+ {[%emt 0:00:24]} 53. Ka5 {[%emt 0:00:22]} Qb6# {[%emt 0:00:00]} 0-1

[Event "GER-ch Youth-U14 2022"]
[Site "Willingen"]
[Date "2022.06.06"]
[Round "3.1"]
[White "Besou, Hussain"]
[Black "Deuer, Marius"]
[Result "1/2-1/2"]
[ECO "E11"]
[WhiteElo "2094"]
[BlackElo "2359"]
[Annotator "TA"]
[PlyCount "50"]
[EventDate "2022.06.05"]
[EventType "swiss"]
[EventRounds "9"]
[EventCountry "GER"]
[SourceTitle "playchess.com"]
[Source "ChessBase"]
[SourceQuality "1"]
[TimeControl "40/4500+30:900+30"]

{[%evp 20,50,8,-25,-21,-14,-5,-14,13,-18,0,0,2,0,-3,-11,74,81,64,69,67,62,101,85,85,93,104,114,110,43,51,14,3]} 1. d4 {[%emt 0:00:00]} Nf6 {[%emt 0:00:00]} 2. c4 {[%emt 0:00:00]} e6 {[%emt 0:00:00]} 3. Nf3 {[%emt 0:00:00]} Bb4+ {[%emt 0:00:00]} 4. Bd2 {[%emt 0:00:00]} Be7 {[%emt 0:00:00]} 5. g3 {[%emt 0:00:00]} O-O {[%emt 0:00:00]} 6. Bg2 {[%emt 0:00:00]} d5 {[%emt 0:00:00]} 7. O-O {[%emt 0:00:00]} c6 {[%emt 0:00:00]} 8. Qc2 {[%emt 0:00:00]} Nbd7 {[%emt 0:00:00]} 9. b3 {[%emt 0:00:00]} b6 {[%emt 0:00:00]} 10. Bf4 {[%emt 0:00:00]} Ba6 {[%emt 0:00:00]} 11. Nbd2 {[%emt 0:05:35]} Nh5 {[%emt 0:00:00] E15: Queen's Indian: 4 g3 sidelines, 4 g3 Ba6 and 4 g3 Bb7 early deviations.} 12. Be3 {[%emt 0:02:09] [#]} Bd6 $146 {[%emt 0:01:39]} ({Predecessor:} 12... Rc8 13. Rac1 h6 14. Rfe1 Bb4 15. Qb2 Qe7 16. Rc2 Rfd8 17. Rd1 c5 18. cxd5 exd5 19. a3 cxd4 20. Bxd4 Bxa3 21. Qa1 Rxc2 {0-1 (21) Gurevich,D (2363)-Zhigalko,S (2572) Chess.com INT 2022}) 13. Rfd1 {[%emt 0:24:26]} Rc8 {[%emt 0:04:41]} 14. Rac1 {[%emt 0:06:14]} f5 {[%emt 0:03:59]} 15. Bg5 {[%emt 0:04:02]} Qe8 {[%emt 0:10:59]} 16. e3 {[%emt 0:01:18]} h6 {[%emt 0:12:42]} 17. Bf4 {[%emt 0:00:05]} Qe7 {[%emt 0:01:13]} (17... Ba3 $11) 18. Bxd6 $16 {[%emt 0:00:57]} Qxd6 {[%emt 0:00:03]} 19. Qb2 {[%emt 0:00:50]} Nhf6 {[%emt 0:07:11]} 20. Ne5 {[%emt 0:02:12]} Ne4 {[%emt 0:01:48]} 21. Nxd7 {[%emt 0:00:42]} Qxd7 {[%emt 0:00:08]} 22. Nf3 {[%emt 0:01:35]} c5 {[%emt 0:04:32]} 23. Ne5 {[%emt 0:03:27]} Qd6 {[%emt 0:02:28]} 24. Qa3 {[%emt 0:07:57]} (24. f3 $16 Nf6 25. Qa3) 24... cxd4 $14 {[%emt 0:03:11]} 25. Qxd6 {[%emt 0:00:58]} (25. Qxa6 $5 {[%cal Re3d4]} Qxe5 26. exd4 $14) 25... Nxd6 {[%emt 0:00:02] Weighted Error Value: White=0.12 (very precise) /Black=0.20 (precise)} 1/2-1/2

[Event "GER-ch Youth-U14 2022"]
[Site "Willingen"]
[Date "2022.06.06"]
[Round "3.2"]
[White "Sreyas Payyappat"]
[Black "Möller, Maurin"]
[Result "1-0"]
[ECO "B81"]
[WhiteElo "2169"]
[BlackElo "1780"]
[Annotator "TA"]
[PlyCount "51"]
[EventDate "2022.06.05"]
[EventType "swiss"]
[EventRounds "9"]
[EventCountry "GER"]
[SourceTitle "playchess.com"]
[Source "ChessBase"]
[SourceQuality "1"]
[TimeControl "40/4500+30:900+30"]

{[%evp 22,51,16,20,30,27,39,8,33,0,34,35,62,57,64,43,29,0,97,-22,432,310,5781,5520,2267,839,29996,29997,29997,29998,29998,29999]} 1. e4 {[%emt 0:00:00]} c5 {[%emt 0:00:00]} 2. Nf3 {[%emt 0:00:00]} e6 {[%emt 0:00:00]} 3. d4 {[%emt 0:00:00]} cxd4 {[%emt 0:00:00]} 4. Nxd4 {[%emt 0:00:00]} Nf6 {[%emt 0:00:00]} 5. Nc3 {[%emt 0:00:00]} d6 {[%emt 0:00:00]} 6. g4 {[%emt 0:00:00]} h6 {[%emt 0:00:00]} 7. h4 {[%emt 0:00:00]} Nc6 {[%emt 0:00:00]} 8. Rg1 {[%emt 0:00:00]} d5 {[%emt 0:00:00]} 9. Bb5 {[%emt 0:00:00]} Bd7 {[%emt 0:00:00]} 10. exd5 {[%emt 0:00:00]} Nxd5 {[%emt 0:00:00]} 11. Nxd5 {[%emt 0:00:00]} exd5 {[%emt 0:00:00]} 12. Be3 {[%emt 0:00:00]} Qa5+ {[%emt 0:04:06] B81: Sicilian Scheveningen: Keres Attack.} 13. c3 {[%emt 0:00:00]} O-O-O {[%emt 0:02:00] [#]} 14. Bxc6 $146 {[%emt 0:00:00]} ({Predecessor:} 14. Qb3 Nxd4 15. Bxd7+ Rxd7 16. Bxd4 Bc5 17. O-O-O Re8 18. Qc2 Re4 19. Kb1 Bxd4 20. Rxd4 Rxd4 21. cxd4+ {0-1 (47) Ashton,A (2294)-Zagrebelny,S (2510) Barcelona 2005}) 14... Bxc6 {[%emt 0:01:48] The position is equal.} 15. Nb3 {[%emt 0:07:38]} Qc7 {[%emt 0:03:26]} 16. Qd4 {[%emt 0:01:23]} Qh2 {[%emt 0:07:14]} 17. O-O-O {[%emt 0:01:17] Strongly threatening Bf4.} b6 {[%emt 0:07:04]} 18. c4 {[%emt 0:16:10]} Qxh4 {[%emt 0:03:52]} 19. cxd5 {[%emt 0:12:42]} Bxd5 {[%emt 0:03:53]} (19... Rxd5 $11 {remains equal.} 20. Qc4 Rxd1+ 21. Rxd1 Qf6) 20. Kb1 {[%emt 0:02:51]} ({Stronger than} 20. Qe5 Qf6 $1 21. Qxf6 gxf6 $17) ({White must play} 20. Qc3+ $1 $16 Kb7 21. Na5+ $1 (21. Rxd5 $2 Rxd5 22. Kb1 Qf6 $19) 21... bxa5 22. Qxa5) 20... Be7 $2 {[%emt 0:09:25][%mdl 8192] Loses the game.} (20... Qe7 $11 21. Ka1 (21. Qd3 $2 Be4 $19) 21... Qb4) 21. Qe5 {[%emt 0:04:34]} Bf6 $2 {[%emt 0:06:00]} (21... Qf6 22. Rxd5 Qxe5 23. Rxe5 Bf6) 22. Qf5+ $18 {[%emt 0:03:35]} Be6 {[%emt 0:00:05]} 23. Qe4 {[%emt 0:00:14]} (23. Qc2+ $142 Bc3 24. Qxc3+ Kb7 {[#]} 25. Nc5+ $1 {[%mdl 512]} Ka8 26. Nxe6) 23... Bg5 {[%emt 0:05:38]} 24. Qa8+ {[%emt 0:00:55] White mates.} Kc7 {[%emt 0:00:08]} 25. Qxa7+ {[%emt 0:00:07]} Kc8 {[%emt 0:00:40]} 26. Rc1+ {[%emt 0:00:07] Weighted Error Value: White=0.37/Black=1.25} 1-0

[Event "GER-ch Youth-U14 2022"]
[Site "Willingen"]
[Date "2022.06.06"]
[Round "3.3"]
[White "Udelnov, Valentin"]
[Black "Ermitsch, Magnus"]
[Result "1/2-1/2"]
[ECO "C42"]
[WhiteElo "1901"]
[BlackElo "2222"]
[Annotator "TA"]
[PlyCount "62"]
[EventDate "2022.06.05"]
[EventType "swiss"]
[EventRounds "9"]
[EventCountry "GER"]
[SourceTitle "playchess.com"]
[Source "ChessBase"]
[SourceQuality "1"]
[TimeControl "40/4500+30:900+30"]

{[%evp 13,62,16,21,0,13,-8,-4,-8,-4,-8,-4,-4,0,0,0,0,1,4,7,1,4,0,0,0,0,0,0,0,0,0,0,0,0,0,2,0,34,0,6,9,37,23,34,22,27,25,52,54,46,0,26]} 1. e4 {[%emt 0:00:00]} e5 {[%emt 0:00:00]} 2. Nf3 {[%emt 0:00:00]} Nf6 {[%emt 0:00:00]} 3. Nxe5 {[%emt 0:00:00]} d6 {[%emt 0:00:00]} 4. Nf3 {[%emt 0:00:00]} Nxe4 {[%emt 0:00:00]} 5. Nc3 {[%emt 0:00:00]} Nxc3 {[%emt 0:00:00]} 6. dxc3 {[%emt 0:00:00]} Be7 {[%emt 0:00:00]} 7. Bd3 {[%emt 0:00:00]} O-O {[%emt 0:00:00]} 8. h3 {[%emt 0:00:00] C42: Petroff Defence: 3 Nxe5 and unusual White 3rd moves.} Nd7 {[%emt 0:00:00][%cal Bb8d7,Bd7c5,Bc5d3][%mdl 32]} 9. Bf4 {[%emt 0:00:00]} Nc5 {[%emt 0:00:00]} 10. O-O {[%emt 0:00:00]} Re8 {[%emt 0:00:00]} 11. Re1 {[%emt 0:00:19] [#]} a5 $146 {[%emt 0:00:00]} ({Predecessor:} 11... Bd7 12. Bf1 Ne6 13. Be3 Bf6 14. Nd4 Nxd4 15. cxd4 Bf5 16. Bd3 Qd7 17. c3 c6 {½-½ (42) Krzywnicka,M (1756)-Pawlicz,A (2032) Police 2019}) 12. Ng5 {[%emt 0:26:36]} Nxd3 {[%emt 0:29:59]} 13. Qh5 {[%emt 0:01:31]} Bxg5 {[%emt 0:03:35]} 14. Bxg5 {[%emt 0:00:09] Really sharp!} Rxe1+ {[%emt 0:06:28]} 15. Rxe1 {[%emt 0:00:13]} Qf8 {[%emt 0:00:32]} 16. cxd3 {[%emt 0:01:12]} Be6 {[%emt 0:02:35]} 17. Qf3 {[%emt 0:04:52]} h6 {[%emt 0:04:24]} 18. Bf4 {[%emt 0:01:07]} b6 {[%emt 0:03:11]} 19. c4 {[%emt 0:03:25][%cal Bc3c4,Bc4c5][%mdl 32]} Qd8 {[%emt 0:05:24]} 20. Rc1 {[%emt 0:02:03]} Rb8 {[%emt 0:04:11]} 21. d4 {[%emt 0:02:38]} Qf6 {[%emt 0:00:46]} 22. Qe3 {[%emt 0:03:58]} Re8 {[%emt 0:00:52]} 23. Qd2 {[%emt 0:06:19]} Bc8 {[%emt 0:03:21]} 24. c5 {[%emt 0:03:22]} Re4 {[%emt 0:01:58]} 25. Be3 {[%emt 0:00:11] [#] Black must now prevent cxb6.} (25. cxb6 $5 {[%cal Rc1c7]} Rxd4 {[#]} 26. Qe3 $1 (26. Rxc7 Rxd2 27. Rxc8+ Kh7 $15) 26... Qxf4 27. Qxf4 Rxf4 28. Rxc7 $14) 25... Qg6 {[%emt 0:02:47] aiming for ...Bxh3.} 26. Kh2 {[%emt 0:04:19] Threatens to win with cxb6.} Re8 {[%emt 0:03:27]} 27. cxb6 {[%emt 0:00:57]} cxb6 {[%emt 0:01:18]} 28. d5 {[%emt 0:01:58]} Bb7 {[%emt 0:01:19]} 29. Rc7 {[%emt 0:01:36]} Ba8 {[%emt 0:00:24]} 30. Bxb6 {[%emt 0:03:14]} Qe4 {[%emt 0:00:48]} 31. Qe3 {[%emt 0:04:56]} (31. Bd4 $14) 31... Qxe3 {[%emt 0:03:05] Weighted Error Value: White=0.06 (flawless) /Black=0.05 (flawless)} 1/2-1/2

[Event "GER-ch Youth-U14 2022"]
[Site "Willingen"]
[Date "2022.06.06"]
[Round "3.4"]
[White "Hagner, Bennet"]
[Black "Campora, Daniel H."]
[Result "1-0"]
[ECO "B40"]
[WhiteElo "2186"]
[BlackElo "2397"]
[Annotator "TA"]
[PlyCount "53"]
[EventDate "2022.06.05"]
[EventType "swiss"]
[EventRounds "9"]
[EventCountry "GER"]
[SourceTitle "playchess.com"]
[Source "ChessBase"]
[SourceQuality "1"]
[TimeControl "40/4500+30:900+30"]

{[%evp 23,53,32,34,19,36,22,19,33,51,16,102,101,153,146,213,190,318,323,312,311,295,292,297,281,743,739,929,929,1302,1269,1004,929]} 1. e4 {[%emt 0:00:00]} c5 {[%emt 0:00:00]} 2. Nf3 {[%emt 0:00:00][%cal Bg1f3,Bf3d4,Bd4b5,Bb5c3,Bc3e2][%mdl 32]} e6 {[%emt 0:00:00]} 3. d4 {[%emt 0:00:00]} cxd4 {[%emt 0:00:00]} 4. Nxd4 {[%emt 0:00:00]} Nf6 {[%emt 0:00:00]} 5. Nc3 {[%emt 0:00:00]} Nc6 {[%emt 0:00:00]} 6. Ndb5 {[%emt 0:00:00]} Bb4 {[%emt 0:00:00]} 7. a3 {[%emt 0:00:00]} Bxc3+ {[%emt 0:00:00]} 8. Nxc3 {[%emt 0:00:00]} d5 {[%emt 0:00:00]} 9. exd5 {[%emt 0:00:00]} exd5 {[%emt 0:00:00]} 10. Bd3 {[%emt 0:00:00]} O-O {[%emt 0:00:00]} 11. O-O {[%emt 0:00:00]} d4 {[%emt 0:00:00]} 12. Ne2 {[%emt 0:00:00]} Bg4 {[%emt 0:00:00]} 13. h3 {[%emt 0:00:00] 13.Bg5 is setting a new trend. B45: Sicilian Four Knights.} Bh5 {[%emt 0:00:00]} 14. Bg5 {[%emt 0:01:58][%cal Bc1g5,Bg5h4,Bh4g3][%mdl 32] [#]} h6 $146 {[%emt 0:00:00]} ({Predecessor:} 14... Qd6 15. Qd2 Bxe2 16. Bf4 Qd5 17. Bxe2 Ne4 {½-½ (17) Mamedov,N (2565)-Khenkin,I (2600) Bad Wiessee 2007}) 15. Bh4 {[%emt 0:08:01] The position is equal.} Bxe2 {[%emt 0:00:00]} 16. Bxe2 {[%emt 0:06:59]} g5 {[%emt 0:11:35]} (16... Re8 $11 {keeps the balance.}) 17. Bg3 $16 {[%emt 0:00:29]} Qb6 {[%emt 0:03:11] [#]} (17... Qd5 $142) 18. Bd3 $1 {[%emt 0:09:33] And now f4 would win. This bishop pair is nice.} Rfe8 {[%emt 0:21:41] [#]} (18... Ne7 $16 19. f4 g4 20. hxg4 Ned5) 19. f4 $1 $18 {[%emt 0:01:33] Strongly threatening fxg5.} Re3 {[%emt 0:11:46]} (19... Qc5 {was necessary.} 20. Be1 Re6 21. fxg5 Qxg5) 20. fxg5 {[%emt 0:02:51]} Rxg3 {[%emt 0:00:52]} 21. Rxf6 {[%emt 0:02:16]} Rxg5 {[%emt 0:03:45]} 22. h4 {[%emt 0:09:38]} ({Resist} 22. Rxh6 Qa5 23. h4 Rg7 $18) 22... Rg7 {[%emt 0:06:20]} 23. Qe2 {[%emt 0:10:16]} ({But not} 23. Rxh6 Qc5 24. Qe2 Qe5 $18) 23... Qxb2 $2 {[%emt 0:04:32]} (23... Qc7 24. Re1 (24. Rxh6 Qg3 $18) 24... Rf8) 24. Raf1 {[%emt 0:02:25][%cal Ba1f1,Bf1f5,Bf5h5][%mdl 32] White is clearly winning.} Qxa3 {[%emt 0:01:03]} 25. Rxh6 {[%emt 0:01:57] Threatens to win with Qh5.} Qc5 {[%emt 0:03:10]} 26. Rf5 {[%emt 0:00:13] White threatens Qh5 and mate.} Qe7 {[%emt 0:05:03]} 27. Rfh5 {[%emt 0:00:48] Black got outplayed after the opening.  Weighted Error Value: White=0.05 (flawless) /Black=0.51} 1-0

[Event "GER-ch Youth-U14 2022"]
[Site "Willingen"]
[Date "2022.06.06"]
[Round "3.5"]
[White "Haubold, Christian Lucas"]
[Black "Luebke, Florentin"]
[Result "1/2-1/2"]
[ECO "B36"]
[WhiteElo "1921"]
[BlackElo "1613"]
[Annotator "TA"]
[PlyCount "77"]
[EventDate "2022.06.05"]
[EventType "swiss"]
[EventRounds "9"]
[EventCountry "GER"]
[SourceTitle "playchess.com"]
[Source "ChessBase"]
[SourceQuality "1"]
[TimeControl "40/4500+30:900+30"]

{[%evp 19,77,37,49,25,33,20,34,-21,35,21,0,6,9,0,0,-32,0,0,0,-35,0,-52,-52,-78,-31,-110,-58,-60,-50,-44,-47,-123,-126,-160,-118,-187,-160,-176,-157,-155,-161,-209,-99,-108,-85,-106,-110,-118,-133,-220,-99,-136,0,-193,-27,-204,-186,-186,-76,-64]} 1. e4 {[%emt 0:00:00]} c5 {[%emt 0:00:00]} 2. Nf3 {[%emt 0:00:00]} Nc6 {[%emt 0:00:00]} 3. d4 {[%emt 0:00:00]} cxd4 {[%emt 0:00:00]} 4. Nxd4 {[%emt 0:00:00]} g6 {[%emt 0:00:00]} 5. c4 {[%emt 0:00:00]} Nf6 {[%emt 0:00:00]} 6. Nc3 {[%emt 0:00:00]} d6 {[%emt 0:00:00]} 7. Be2 {[%emt 0:00:00]} Nxd4 {[%emt 0:00:00]} 8. Qxd4 {[%emt 0:00:00]} Bg7 {[%emt 0:00:00]} 9. O-O {[%emt 0:00:00]} O-O {[%emt 0:00:00]} 10. Qd3 {[%emt 0:00:00]} Be6 {[%emt 0:00:00]} 11. Rb1 {[%emt 0:05:59] B36: Sicilian: Maroczy Bind: Gurgenidze System.} Rc8 {[%emt 0:01:52]} 12. b3 {[%emt 0:00:51]} a6 {[%emt 0:01:16][%cal Ob7b5] [#]} 13. f3 $146 {[%emt 0:08:03]} (13. Bd2 $14) ({Predecessor:} 13. Bd2 Qc7 14. Rbc1 Qc6 15. f4 b5 16. cxb5 axb5 17. Qxb5 Qa8 18. Qa6 d5 19. e5 {1-0 (32) Limberg,E (2249)-Flores,C (1725) Taubate 2021}) 13... Nd7 {[%emt 0:01:52]} ({Black should play} 13... b5 $11) 14. Bb2 {[%emt 0:08:31]} Qa5 {[%emt 0:08:35][%cal Ob7b5]} 15. f4 {[%emt 0:25:37]} f5 {[%emt 0:20:22]} 16. Nd5 {[%emt 0:02:38]} Bxd5 {[%emt 0:03:56]} 17. exd5 {[%emt 0:07:36]} Qxa2 {[%emt 0:06:04]} (17... Nc5 $5 {[%cal Rc5d3]} 18. Qe3 Qxa2 19. Bxg7 Kxg7 $11) 18. Bxg7 {[%emt 0:00:23]} Kxg7 {[%emt 0:00:10]} 19. Bf3 {[%emt 0:01:37]} Qa5 {[%emt 0:01:42] Against Qc3+} 20. b4 {[%emt 0:01:27] Prevents Qc5+.} (20. Rfe1 $11) 20... Qc7 $15 {[%emt 0:02:25]} 21. Qd4+ {[%emt 0:00:57]} Kg8 {[%emt 0:01:19]} (21... Kf7 $17) 22. Rfe1 {[%emt 0:02:37]} (22. Rfc1 $15) 22... Rf7 {[%emt 0:06:30]} (22... Qxc4 $17 23. Qe3 Qb5 24. Qxe7 Qb6+ 25. Qe3 Kf7 26. Qxb6 Nxb6) 23. Rec1 {[%emt 0:02:45]} b6 {[%emt 0:02:19]} 24. g4 {[%emt 0:03:44]} a5 {[%emt 0:05:58]} 25. bxa5 {[%emt 0:04:30]} (25. Kh1 $15) 25... bxa5 $17 {[%emt 0:00:40]} 26. Rb5 {[%emt 0:00:39] Against Qc5} a4 {[%emt 0:02:36]} 27. Rc2 {[%emt 0:01:23]} (27. gxf5 $17 {was necessary.} gxf5 28. Kh1) 27... Rg7 {[%emt 0:00:40]} 28. Qe3 {[%emt 0:01:07]} Nc5 {[%emt 0:01:53]} 29. Kh1 {[%emt 0:02:38]} Ra8 {[%emt 0:01:20]} 30. h4 {[%emt 0:01:45]} (30. g5 $142) 30... Rb8 {[%emt 0:01:02]} (30... h6 $19 {and Black stays clearly on top. White must now prevent ...Qc8.} 31. Ra2 Qd7) 31. Rcb2 {[%emt 0:01:04]} Nb3 {[%emt 0:01:08]} 32. Rxb8+ {[%emt 0:00:11]} Qxb8 {[%emt 0:00:27]} 33. Bd1 {[%emt 0:00:24]} fxg4 {[%emt 0:00:49]} 34. Bxb3 {[%emt 0:00:32] [#]} (34. c5 $17 dxc5 35. Bxg4) 34... axb3 {[%emt 0:00:31]} (34... Rf7 $1 $19 {Threatens to win with ...Qb4.} 35. Qc3 axb3 36. Rxb3 Qf8) 35. Rxb3 {[%emt 0:00:04] [#] KQR-KQR} Qc8 {[%emt 0:01:01]} (35... Qc7 $1 $17 {Hoping for ...Rf7.} 36. Qd4 h5) 36. Kg2 $2 {[%emt 0:02:21]} (36. Qe6+ $1 $11 {and White is okay.} Qxe6 37. dxe6) 36... h5 $2 {[%emt 0:00:21]} (36... Rf7 $19 37. Qd4 h5) 37. Qd4 {[%emt 0:03:31]} (37. Qe6+ $1 $11 Qxe6 38. dxe6) 37... Rf7 {[%emt 0:04:39]} 38. Kg3 {[%emt 0:00:41]} Rf8 {[%emt 0:01:46]} (38... Qf5 $19 {And now ...Rf8 would win.} 39. Qe3 Qc2) 39. Re3 {Weighted Error Value: White=0.48/Black=0.41} 1/2-1/2

[Event "GER-ch Youth-U14 2022"]
[Site "Willingen"]
[Date "2022.06.06"]
[Round "3.6"]
[White "Mader, Fabian"]
[Black "Honisch, Alexander"]
[Result "1-0"]
[ECO "C54"]
[WhiteElo "1652"]
[BlackElo "1878"]
[Annotator "NA RC COMBH"]
[PlyCount "100"]
[EventDate "2022.06.05"]
[EventType "swiss"]
[EventRounds "9"]
[EventCountry "GER"]
[SourceTitle "playchess.com"]
[Source "ChessBase"]
[SourceQuality "1"]
[TimeControl "40/4500+30:900+30"]

1. e4 {[%emt 0:00:00]} e5 {[%emt 0:00:00]} 2. Nf3 {[%emt 0:00:00]} Nc6 {[%emt 0:00:00]} 3. Bc4 {[%emt 0:00:00]} Bc5 {[%emt 0:00:00]} 4. c3 {[%emt 0:00:00]} Nf6 {[%emt 0:00:00]} 5. d3 {[%emt 0:00:00]} d6 {[%emt 0:00:00]} 6. Bb3 {[%emt 0:00:00]} h6 {[%emt 0:00:00]} 7. Nbd2 {[%emt 0:00:00] 7.0-0 is vanishing.} a5 {[%emt 0:00:00]} 8. h3 {[%emt 0:00:00]} b5 {[%emt 0:00:00]} 9. Nf1 {[%emt 0:00:00]} O-O {[%emt 0:14:58]} 10. g4 {[%emt 0:00:00] [#]} d5 $146 {[%emt 0:01:59]} ({Predecessor:} 10... Nh7 11. Ng3 a4 12. Bc2 Ne7 13. Nh4 Ng6 14. Nhf5 Nh4 15. Rg1 Bxf5 16. Nxf5 Nxf5 17. gxf5 {1-0 (50) Arciszewska,Z (1589)-Gornisiewicz,N (1485) Sypniewo 2022}) 11. Qe2 {[%emt 0:00:00]} b4 {[%emt 0:05:58]} 12. g5 {[%emt 0:01:52]} hxg5 {[%emt 0:12:12]} 13. Bxg5 {[%emt 0:00:21]} dxe4 {[%emt 0:01:39]} 14. dxe4 {[%emt 0:00:54]} a4 {[%emt 0:09:51]} 15. Bd5 {[%emt 0:05:28]} Ba6 {[%emt 0:09:03]} 16. Qc2 {[%emt 0:13:55]} Bb7 {[%emt 0:07:42]} 17. Rd1 {[%emt 0:07:35]} Bd6 {[%emt 0:06:12]} 18. Rg1 {[%emt 0:04:04]} b3 {[%emt 0:02:22]} 19. axb3 {[%emt 0:06:49]} axb3 {[%emt 0:00:06]} 20. Bxb3 {[%emt 0:03:02]} Na5 {[%emt 0:01:00]} 21. Ng3 {[%emt 0:02:25]} Nxb3 {[%emt 0:00:53]} 22. Qxb3 {[%emt 0:00:49]} Ba6 {[%emt 0:02:13]} 23. Nh5 {[%emt 0:07:58]} Nxh5 {[%emt 0:04:21]} 24. Bxd8 $18 {[%emt 0:01:08]} Raxd8 {[%emt 0:00:02]} 25. Rd2 {[%emt 0:12:29]} Nf4 {[%emt 0:01:37]} 26. Qd1 {[%emt 0:01:29]} Bb7 {[%emt 0:01:45]} 27. Nxe5 {[%emt 0:08:49]} Rde8 {[%emt 0:01:59]} 28. Nc4 {[%emt 0:00:59]} Rxe4+ {[%emt 0:00:46]} 29. Ne3 {[%emt 0:00:11]} Ra8 {[%emt 0:02:17]} 30. Rd4 {[%emt 0:02:25]} Re7 {[%emt 0:01:04]} 31. Qg4 {[%emt 0:01:13]} Ne6 {[%emt 0:00:29]} 32. Kd2 {[%emt 0:01:03]} Be5 {[%emt 0:00:24]} 33. Nf5 {[%emt 0:01:34]} Ree8 {[%emt 0:00:11]} 34. f4 {[%emt 0:01:25]} Bf6 {[%emt 0:00:53]} 35. Rd7 {[%emt 0:01:05]} Rad8 {[%emt 0:00:14]} 36. Rxd8 {[%emt 0:00:13]} Rxd8+ {[%emt 0:00:02]} 37. Kc1 {[%emt 0:00:15]} Ra8 {[%emt 0:01:05]} 38. Nd4 {[%emt 0:02:20]} Nc5 {[%emt 0:00:40]} 39. Re1 {[%emt 0:02:16]} Nd3+ {[%emt 0:00:31]} 40. Kd2 {[%emt 0:00:12]} Nxe1 {[%emt 0:00:31]} 41. Kxe1 {[%emt 0:15:23]} Ra2 {[%emt 0:00:00]} 42. Qe2 {[%emt 0:00:00]} Ra8 {[%emt 0:00:00]} 43. Kd2 {[%emt 0:00:00]} Bd5 {[%emt 0:01:48]} 44. Kc2 {[%emt 0:00:00]} Rb8 {[%emt 0:01:02]} 45. Kc1 {[%emt 0:00:00]} Kf8 {[%emt 0:04:08]} 46. Qh5 {[%emt 0:00:00]} Rd8 {[%emt 0:01:23]} 47. c4 {[%emt 0:00:32]} (47. Nf5 $18 {[%cal Rh5h8]} Kg8 48. Ne3) 47... Be4 {[%emt 0:04:11]} 48. Qc5+ {[%emt 0:02:00]} Kg8 {[%emt 0:00:38]} 49. Nc6 {[%emt 0:00:30]} Ra8 {[%emt 0:06:20]} 50. Ne7+ {[%emt 0:00:56]} Bxe7 1-0